[Event "FIDE WSCC 50 2022"]
[Site "Assisi"]
[Date "2022.11.19"]
[Round "5.7"]
[White "Nevednichy, Vladislav"]
[Black "Rocha, Sergio"]
[Result "1-0"]
[ECO "C19"]
[WhiteElo "2499"]
[BlackElo "2316"]
[Annotator "TA"]
[PlyCount "83"]
[EventDate "2022.11.14"]
[EventType "swiss"]
[EventCountry "ITA"]
[SourceTitle "playchess.com"]
[Source "ChessBase"]
[SourceQuality "1"]
[TimeControl "40/5400+30:1800+30"]

{[%evp 17,83,-2,45,16,44,25,48,0,62,64,135,120,118,94,119,90,98,102,95,55,48,71,118,105,191,90,185,57,141,129,270,223,217,150,241,233,334,224,223,218,220,210,204,200,210,118,116,121,101,98,104,119,307,162,173,173,173,172,162,91,91,91,213,179,413,393,29998,29999]} 1. e4 {[%emt 0:00:03]} e6 {[%emt 0:00:13]} 2. d4 {[%emt 0:00:04]} d5 {[%emt 0:00:13]} 3. Nc3 {[%emt 0:00:05]} Bb4 {[%emt 0:00:28]} 4. e5 {[%emt 0:00:07]} c5 {[%emt 0:00:21]} 5. a3 {[%emt 0:00:05][%cal Ba2a3,Ba3a4,Ba4a5,Ba5a6][%mdl 32]} Bxc3+ {[%emt 0:00:16]} 6. bxc3 {[%emt 0:00:03]} Ne7 {[%emt 0:00:19]} 7. a4 {[%emt 0:04:44]} Qc7 {[%emt 0:02:24]} 8. Nf3 {[%emt 0:01:09]} Bd7 {[%emt 0:01:04]} 9. Be2 {[%emt 0:07:49]} Bc6 {[%emt 0:04:47]} (9... O-O $11 {deserves consideration.}) 10. O-O {[%emt 0:02:10] C19: French: 3 Nc3 Bb4: Main line: 7 Nf3 and 7 a4.} Nd7 {[%emt 0:00:15]} 11. a5 {[%emt 0:07:35] [#]} h6 $146 {[%emt 0:06:51]} ({Predecessor:} 11... a6 12. Ng5 h6 13. Nh3 Bb5 14. Ba3 Nc6 15. Bxb5 axb5 16. Qg4 g6 17. Nf4 Ne7 {1-0 (42) Charbonneau,P (2386)-Formanek,E (2300) Penn State 2002}) 12. g3 {[%emt 0:12:31]} (12. a6 $14) 12... Nf5 {[%emt 0:04:30]} (12... O-O $11) 13. Bd3 $14 {[%emt 0:05:10] Bxf5 is the strong threat.} O-O-O {[%emt 0:03:02]} (13... Ne7 $14) 14. a6 {[%emt 0:06:05]} b6 {[%emt 0:00:12]} 15. Bxf5 {[%emt 0:00:21]} exf5 {[%emt 0:00:15]} 16. e6 {[%emt 0:01:09]} fxe6 {[%emt 0:01:50]} 17. Bf4 {[%emt 0:00:17] Against g5} e5 {[%emt 0:00:14]} 18. Bxe5 {[%emt 0:02:17]} (18. dxe5 g5 19. e6 gxf4 $17) 18... Nxe5 {[%emt 0:00:09]} 19. Nxe5 {[%emt 0:00:02]} ({Don't play} 19. dxe5 Qd7 $15) 19... g5 {[%emt 0:01:58]} ({Black should try} 19... Be8) 20. Re1 $36 {[%emt 0:00:42][%mdl 2048] Black is under strong pressure.} Rhf8 {[%emt 0:05:38]} (20... Be8 $16) 21. Qf3 {[%emt 0:08:22]} (21. dxc5 $18 bxc5 22. Qd3) 21... Qd6 {[%emt 0:07:41]} (21... Be8 $16 {might work better.}) 22. Re2 {[%emt 0:05:48]} (22. Nxc6 $1 $18 Qxc6 23. Re7) 22... Bb5 {[%emt 0:03:45]} (22... g4 $14 23. Qd3 Be8) 23. c4 $1 {[%emt 0:00:34]} Bc6 {[%emt 0:00:15]} (23... g4 $16 24. Qg2 Bc6) 24. dxc5 {[%emt 0:10:36]} Qxc5 {[%emt 0:00:39]} 25. Rae1 {[%emt 0:04:54] aiming for Nxc6.} Ba8 {[%emt 0:05:16]} (25... g4 $16 {is a better defense.} 26. Qf4 dxc4) 26. Ng6 $18 {[%emt 0:01:41]} Rf6 {[%emt 0:01:43]} (26... Rf7 $142 27. Re8 Bc6) 27. Ne7+ {[%emt 0:10:56]} Kb8 {[%emt 0:03:37]} 28. cxd5 {[%emt 0:00:14]} Bxd5 {[%emt 0:09:17]} 29. Nxd5 {[%emt 0:00:55]} Qxd5 {[%emt 0:00:07]} 30. Qxd5 {[%emt 0:01:39]} Rxd5 {[%emt 0:00:05][%mdl 4096] Endgame [#] KRR-KRR} 31. Re8+ {[%emt 0:00:02]} ({White should play} 31. Re7 $1 $18 {[%cal Re7b7]} Rfd6 32. Rb7+ Kc8 33. Kg2 (33. Rxa7 Rd1 $18)) 31... Kc7 $16 {[%emt 0:00:08]} 32. Ra8 {[%emt 0:00:10]} b5 {[%emt 0:21:14]} 33. Rxa7+ {[%emt 0:00:55]} Kb6 {[%emt 0:00:06] [#]} 34. Ra8 {[%emt 0:00:22] White is more active.} Rd7 {[%emt 0:02:46] Against Re7} (34... Rfd6 $16 {was worth a try.}) 35. Rb8+ {[%emt 0:01:54]} (35. c4 $142) 35... Kc6 {[%emt 0:02:00]} 36. Ra1 {[%emt 0:00:27] Black must now prevent a7.} Ra7 {[%emt 0:00:12]} 37. Ra5 {[%emt 0:00:23]} f4 {[%emt 0:00:39]} 38. Rbxb5 {[%emt 0:02:58]} (38. gxf4 $18 Rxf4 39. Rbxb5 (39. Raxb5 Rxa6 40. Rb3 Kd5 $14)) 38... fxg3 {[%emt 0:01:31]} 39. hxg3 {[%emt 0:00:05]} Rd6 {[%emt 0:00:03]} (39... Kc7 $16) 40. c4 {[%emt 0:00:48] Strongly threatening Rf5.} Rd4 $2 {[%emt 0:00:15]} (40... Kc7 {was necessary.} 41. Rc5+ Kb6) 41. Rc5+ $18 {[%emt 0:31:02]} Kb6 $2 {[%emt 0:30:15]} (41... Kd7 $18 42. Rf5 Re4) 42. Rab5+ {[%emt 0:00:04] Weighted Error Value: White=0.37/Black=0.72} 1-0

[Event "FIDE WSCC 50 2022"]
[Site "Assisi"]
[Date "2022.11.19"]
[Round "5.8"]
[White "Bischoff, Klaus"]
[Black "Estremera Panos, Sergio"]
[Result "1/2-1/2"]
[ECO "E49"]
[WhiteElo "2479"]
[BlackElo "2259"]
[Annotator "TA"]
[PlyCount "39"]
[EventDate "2022.11.14"]
[EventType "swiss"]
[EventCountry "ITA"]
[SourceTitle "playchess.com"]
[Source "ChessBase"]
[SourceQuality "1"]
[TimeControl "40/5400+30:1800+30"]

{[%evp 15,39,0,12,0,0,-4,10,3,7,8,1,0,0,-16,-27,-7,-15,-18,12,9,12,0,9,10,9,0]} 1. d4 {[%emt 0:00:07]} Nf6 {[%emt 0:00:17]} 2. c4 {[%emt 0:00:08]} e6 {[%emt 0:00:13]} 3. Nc3 {[%emt 0:00:25]} Bb4 {[%emt 0:00:27]} 4. e3 {[%emt 0:00:24]} O-O {[%emt 0:00:46]} 5. Bd3 {[%emt 0:00:34]} d5 {[%emt 0:00:47]} 6. a3 {[%emt 0:02:42]} Bxc3+ {[%emt 0:00:47]} 7. bxc3 {[%emt 0:00:08]} dxc4 {[%emt 0:00:24]} 8. Bxc4 {[%emt 0:00:08]} c5 {[%emt 0:00:17]} 9. Bb2 {[%emt 0:03:37] E49: Nimzo-Indian: Rubinstein: 5 Bd3 d5 6 a3 Bxc3+ 7 bxc3.} Qc7 {[%emt 0:00:54] Strongly threatening ...cxd4.} 10. Qe2 {[%emt 0:01:11]} Nc6 {[%emt 0:05:18]} 11. Nf3 {[%emt 0:00:35]} e5 {[%emt 0:01:01]} 12. h3 {[%emt 0:01:15] [#] Prevents Bg4.} exd4 $146 {[%emt 0:13:04]} ({Predecessor:} 12... h6 13. O-O Bf5 14. Rfd1 Rad8 15. Bb5 e4 16. Nh2 Na5 17. c4 a6 18. Ba4 cxd4 19. Bxd4 Qxc4 20. Qxc4 Nxc4 {½-½ (73) Carlsen,M (2856)-Duda,J (2731) chess24.com INT 2022}) 13. cxd4 {[%emt 0:03:16]} Qa5+ {[%emt 0:00:38]} 14. Qd2 {[%emt 0:04:09]} Qxd2+ {[%emt 0:10:29]} 15. Kxd2 {[%emt 0:00:22]} Na5 {[%emt 0:02:59] The position is equal.} 16. Ba2 {[%emt 0:06:34]} Be6 {[%emt 0:07:57]} (16... c4 $5 {[%cal Rf6e4]}) 17. dxc5 {[%emt 0:17:21] Black should prevent Bxf6.} Ne4+ {[%emt 0:04:13] Pair of Knights!} 18. Ke2 {[%emt 0:00:35]} Bxa2 {[%emt 0:01:27]} 19. Rxa2 {[%emt 0:00:09]} Rac8 {[%emt 0:07:40]} 20. Rc1 {[%emt 0:18:34] A balanced but interesting game.  Weighted Error Value: White=0.03 (flawless) /Black=0.04 (flawless)} 1/2-1/2

[Event "FIDE WSCC 50 2022"]
[Site "Assisi"]
[Date "2022.11.19"]
[Round "5.9"]
[White "Pavlovic, Milos"]
[Black "Welling, Gerard"]
[Result "1-0"]
[ECO "D35"]
[WhiteElo "2447"]
[BlackElo "2255"]
[Annotator "TA"]
[PlyCount "111"]
[EventDate "2022.11.14"]
[EventType "swiss"]
[EventCountry "ITA"]
[SourceTitle "playchess.com"]
[Source "ChessBase"]
[SourceQuality "1"]
[TimeControl "40/5400+30:1800+30"]

{[%evp 20,111,20,19,27,28,29,29,40,9,11,2,0,0,12,11,31,-21,4,11,22,-22,0,0,0,-10,0,-22,-22,-44,-32,-64,-22,-49,-37,-53,0,-52,0,27,93,58,306,302,306,294,302,297,269,240,230,228,229,229,327,327,325,308,307,283,696,707,692,629,619,620,605,472,496,462,818,795,1232,1053,1125,1080,5206,5089,3395,2750,1860,2016,29964,29961,6355,5537,2030,0,1393,448,29961,29968,29968,7125]} 1. d4 {[%emt 0:00:03]} e6 {[%emt 0:00:13]} 2. c4 {[%emt 0:04:04]} Nf6 {[%emt 0:00:26]} 3. Nc3 {[%emt 0:01:22]} d5 {[%emt 0:00:32]} 4. Bg5 {[%emt 0:03:05]} Nbd7 {[%emt 0:01:26]} 5. e3 {[%emt 0:00:13]} c6 {[%emt 0:01:21]} 6. cxd5 {[%emt 0:00:47]} exd5 {[%emt 0:00:04]} 7. Bd3 {[%emt 0:00:06]} Be7 {[%emt 0:00:06]} 8. Nge2 {[%emt 0:04:10]} Nh5 {[%emt 0:01:01]} 9. Bxe7 {[%emt 0:01:03]} Qxe7 {[%emt 0:00:03]} 10. g4 {[%emt 0:15:01]} Nhf6 {[%emt 0:00:08]} 11. Ng3 {[%emt 0:01:03]} Nb6 {[%emt 0:03:02] D35: Queen's Gambit Declined: Exchange Variation.} 12. g5 {[%emt 0:04:28]} Ng8 {[%emt 0:06:40]} 13. h4 {[%emt 0:01:20]} Bd7 {[%emt 0:07:04] White has an edge.} 14. Qb3 {[%emt 0:17:24]} O-O-O {[%emt 0:11:46]} 15. a4 {[%emt 0:08:00][%cal Ba2a4,Ba4a5][%mdl 32] [#]} Kb8 $146 {[%emt 0:07:42]} ({Predecessor:} 15... h6 16. a5 Nc4 17. Bxc4 dxc4 18. Qxc4 hxg5 19. hxg5 Rxh1+ 20. Nxh1 Qxg5 21. Ng3 Be6 {0-1 (36) Vajda,A (2336)-Tarhan,A (2202) Miercurea Ciuc 2022}) 16. a5 {[%emt 0:01:15]} Nc8 {[%emt 0:05:17]} 17. Na4 {[%emt 0:00:15]} Bg4 {[%emt 0:05:58]} 18. Kd2 {[%emt 0:11:03]} (18. Rg1 $14) 18... Qc7 {[%emt 0:03:41]} 19. Nc5 {[%emt 0:00:51] Hoping for Na6+.} Ka8 $1 {[%emt 0:00:35]} 20. Rhc1 {[%emt 0:17:28]} Nge7 {[%emt 0:00:41]} 21. f3 {[%emt 0:01:35]} Be6 {[%emt 0:02:39]} 22. Nh5 {[%emt 0:01:24]} g6 {[%emt 0:02:34]} 23. Nf4 {[%emt 0:00:11]} Bf5 {[%emt 0:00:16]} 24. a6 {[%emt 0:01:14][%cal Ra6b7]} b6 {[%emt 0:00:22]} 25. Nb7 {[%emt 0:00:05]} Rd7 {[%emt 0:00:57]} 26. Be2 {[%emt 0:01:11]} h6 {[%emt 0:00:16]} 27. Qa3 {[%emt 0:00:35]} hxg5 {[%emt 0:01:08]} 28. hxg5 {[%emt 0:00:02]} Rh4 {[%emt 0:03:03]} ({Don't play} 28... Rh2 29. b4 $11) (28... c5 $1 $15) 29. Rh1 {[%emt 0:00:13]} Rxf4 {[%emt 0:02:48]} (29... Rxh1 $11 30. Rxh1 c5) 30. exf4 $16 {[%emt 0:00:10] Black is now going downhill.} ({Not} 30. Ke1 $2 Rh4 $3 {[%mdl 512]} 31. Rxh4 Qg3+ 32. Kd2 Qxh4 $19) 30... Qxf4+ $2 {[%emt 0:00:07]} (30... c5 $1 $14) 31. Qe3 $18 {[%emt 0:00:05] The board is on fire. Active counter play!} Qxe3+ {[%emt 0:00:19]} 32. Kxe3 {[%emt 0:00:01]} Kb8 {[%emt 0:00:10]} 33. Rh8 {[%emt 0:01:22]} Kc7 {[%emt 0:00:27]} 34. Rc1 {[%emt 0:00:40]} Nd6 {[%emt 0:07:31] [#]} 35. Nxd6 {[%emt 0:00:34]} Kxd6 {[%emt 0:00:05]} 36. b4 {[%emt 0:06:07]} Be6 {[%emt 0:04:42]} (36... Nc8 $142 37. Kf4 Rc7 38. Rd8+ Bd7) 37. Bd3 {[%emt 0:00:00]} Rc7 {[%emt 0:07:34]} 38. Rd8+ {[%emt 0:00:00]} Bd7 {[%emt 0:01:10]} 39. Kf4 {[%emt 0:00:00]} b5 $2 {[%emt 0:02:37]} (39... Rc8 40. Rxc8 Nxc8) 40. Rh1 {[%emt 0:00:00]} Rc8 {[%emt 0:02:29]} 41. Rhh8 {[%emt 0:28:20]} Rxd8 {[%emt 0:36:17]} 42. Rxd8 {[%emt 0:00:28][%mdl 4096] Endgame KRB-KBN} Nc8 {[%emt 0:00:48]} 43. Bf1 {[%emt 0:00:00] Bh3 is the strong threat.} Ke7 {[%emt 0:00:00]} 44. Rh8 {[%emt 0:00:00] Threatens to win with Bh3.} Be8 {[%emt 0:00:00]} (44... Nb6 $142 45. Bh3 Be8) 45. Bd3 {[%emt 0:00:00]} Nb6 {[%emt 0:00:00]} 46. Rh7 {[%emt 0:00:00] And now Bxg6 would win.} Nd7 {[%emt 0:00:00] [#]} 47. Bxg6 $1 {[%emt 0:00:00]} Nf8 {[%emt 0:00:00]} 48. Bf5 {[%emt 0:00:00] g6 would kill now.} Nxh7 {[%emt 0:00:00]} 49. Bxh7 {[%emt 0:00:00] KB-KB} f6 {[%emt 0:00:00]} 50. Bf5 {[%emt 0:00:00]} fxg5+ {[%emt 0:00:00]} 51. Kxg5 {[%emt 0:00:00]} Bf7 {[%emt 0:00:00]} 52. Bd3 {[%emt 0:00:00]} Be6 {[%emt 0:00:00]} 53. Bf5 {[%emt 0:00:00] Intending Bxe6 and mate.} Bf7 {[%emt 0:00:00]} 54. f4 {[%emt 0:01:42]} (54. Bg4 $142 {White wants to mate with f4.} Be8 55. f4) 54... Be8 {[%emt 0:00:00]} (54... c5 $18 55. bxc5 b4) 55. Bg4 {[%emt 0:00:33]} Bf7 {[%emt 0:00:00]} 56. f5 {[%emt 0:00:13] Weighted Error Value: White=0.29 (precise) /Black=0.51} 1-0

[Event "FIDE WSCC 50 2022"]
[Site "Assisi"]
[Date "2022.11.19"]
[Round "5.10"]
[White "Antic, Dejan"]
[Black "Al-Ali, Hussein Ali Hussein"]
[Result "1-0"]
[ECO "E94"]
[WhiteElo "2412"]
[BlackElo "2231"]
[Annotator "TA"]
[PlyCount "123"]
[EventDate "2022.11.14"]
[EventType "swiss"]
[EventCountry "ITA"]
[SourceTitle "playchess.com"]
[Source "ChessBase"]
[SourceQuality "1"]
[TimeControl "40/5400+30:1800+30"]

{[%evp 21,123,39,36,43,73,27,162,150,178,153,156,192,167,50,119,0,17,12,30,20,113,110,102,72,113,116,182,189,195,193,162,150,730,728,710,663,591,164,164,164,164,164,158,157,154,141,551,285,220,239,216,0,0,0,78,78,78,78,78,0,0,0,78,78,78,78,78,78,309,309,252,149,509,515,506,502,468,230,230,236,237,237,410,395,268,268,468,395,586,365,268,164,29965,29966,29967,29963,29966,29966,29965,29967,29966,29963,4622,4618]} 1. d4 {[%emt 0:03:06]} Nf6 {[%emt 0:00:08]} 2. Nf3 {[%emt 0:00:32]} g6 {[%emt 0:00:44]} 3. c4 {[%emt 0:00:17]} Bg7 {[%emt 0:00:06]} 4. Nc3 {[%emt 1:28:35]} d6 {[%emt 0:00:20]} 5. e4 {[%emt 1:28:57]} O-O {[%emt 0:00:08]} 6. Be2 {[%emt 1:29:13]} Nbd7 {[%emt 0:01:11]} 7. O-O {[%emt 0:01:06]} e5 {[%emt 0:00:03]} 8. Be3 {[%emt 0:00:36]} exd4 {[%emt 0:01:52]} 9. Nxd4 {[%emt 0:00:12]} Re8 {[%emt 0:00:43]} 10. f3 {[%emt 0:00:30]} c6 {[%emt 0:02:20]} 11. Qd2 {[%emt 0:00:35]} d5 {[%emt 0:10:52]} 12. cxd5 {[%emt 0:02:31] E94: King's Indian: Classical: 6 Be2 e5 7 0-0: Various Black 7th moves.} cxd5 {[%emt 0:00:05]} 13. Ndb5 {[%emt 0:02:22]} (13. exd5 Nb6 $11) (13. Nxd5 Nxd5 14. exd5 Nb6 $11) (13. Rad1 $1 $16) 13... dxe4 {[%emt 0:00:44]} (13... Nf8 $1 $11 {and Black is okay.}) 14. fxe4 $18 {[%emt 0:03:27] White is clearly better.} (14. Bxa7 Rxa7 $1 {[%mdl 512]} 15. Nxa7 Qb6+ 16. Kh1 Qxa7 17. fxe4 Ne5 $17) (14. Nd6 Rf8 $16) 14... a6 {[%emt 0:03:21]} 15. Nd6 {[%emt 0:02:24][%cal Od6f7]} Rf8 {[%emt 0:04:06]} 16. Rad1 {[%emt 0:34:19]} Ne5 {[%emt 0:07:42] [#]} 17. Qe1 $146 {[%emt 0:10:31]} (17. Bg5 $1 $18 {[%cal Oc3d5] Strongly threatening Nd5!} Be6 18. Kh1 (18. Nxb7 Qb6+ 19. Qd4 Qxd4+ 20. Rxd4 Nfg4 $14)) ({Predecessor:} 17. Bg5 Be6 18. Kh1 h6 19. Bxh6 Bxh6 20. Qxh6 Nfg4 21. Qf4 Qh4 22. Bxg4 Nxg4 23. h3 {½-½ (45) Matushkina,L (2220)-Marquardt,G (2245) ICCF email 2014}) 17... Qc7 {[%emt 0:14:33]} (17... Nfg4 $14 18. Nxc8 Qxc8) 18. Qh4 {[%emt 0:08:16]} (18. Qg3 $16 Ne8 19. Nxc8 Qxc8 20. Nd5) 18... Nfg4 {[%emt 0:08:16]} 19. Bxg4 {[%emt 0:06:19]} Nxg4 {[%emt 0:01:52]} 20. Bf4 {[%emt 0:07:36] Black must now prevent Nd5. Chess con chili.} Qb6+ {[%emt 0:01:49]} (20... Bf6 21. Qg3 Qc5+ 22. Kh1 Bxc3 23. bxc3 $16) (20... Be6 $1 $11 {keeps the balance.}) 21. Kh1 $16 {[%emt 0:00:14] Active counter play!} Be6 {[%emt 0:00:44]} 22. Nd5 $36 {[%emt 0:04:09][%mdl 2048] Black is under strong pressure.} Bxd5 {[%emt 0:00:20]} 23. exd5 {[%emt 0:00:19]} ({Much worse is} 23. Rxd5 $6 Ne3 24. Bxe3 Qxe3 $11) 23... h5 {[%emt 0:02:40] [#]} (23... f5 $16) 24. h3 $1 $18 {[%emt 0:00:48]} Nh6 {[%emt 0:00:24]} 25. Qe7 {[%emt 0:02:23] And now Bxh6 would win.} Rad8 {[%emt 0:02:46]} 26. Rf3 {[%emt 0:05:57]} (26. Nxb7 Nf5 27. Qc7 Qxc7 28. Bxc7 Rd7 $11) 26... Qxb2 $2 {[%emt 0:00:47]} (26... Qc5 $16 27. b4 Qxb4) 27. Bxh6 {[%emt 0:00:52][%mdl 64] Remove Defender} Bxh6 {[%emt 0:01:23]} 28. Nxf7 {[%emt 0:00:23]} Qg7 {[%emt 0:00:39]} 29. Nxh6+ $2 {[%emt 0:00:53]} (29. Rdf1) 29... Qxh6 {[%emt 0:00:10]} 30. Rxf8+ {[%emt 0:00:28]} Qxf8 {[%emt 0:00:16]} 31. Qxb7 {[%emt 0:00:21][%mdl 4096] Endgame KQR-KQR} Qd6 {[%emt 0:01:01]} 32. Re1 {[%emt 0:00:58]} Rf8 {[%emt 0:03:05]} 33. Qc6 {[%emt 0:01:40]} Qg3 {[%emt 0:00:43][%mdl 8192]} (33... Rf6 $16 {is tougher.}) 34. Qe6+ {[%emt 0:00:25]} Kg7 {[%emt 0:00:16]} 35. d6 {[%emt 0:01:14]} Qd3 {[%emt 0:01:28] [#]} 36. Qe7+ {[%emt 0:01:13]} (36. Re4 $1 $18 {Hoping for Qe5+.} Qf1+ 37. Kh2) 36... Rf7 $11 {[%emt 0:00:21]} 37. Kh2 {[%emt 0:00:42]} h4 {[%emt 0:01:39]} (37... Rxe7 $2 38. dxe7 Qd6+ 39. Kh1 $18) (37... Qd2 $1 $11 38. Qe5+ Rf6) 38. Re3 {[%emt 0:01:22]} Qd2 {[%emt 0:01:51]} 39. Qe5+ {[%emt 0:00:26]} Rf6 {[%emt 0:00:15]} 40. Qe7+ {[%emt 0:01:26]} ({White should try} 40. d7 $16 {Qe7+ would kill now.} Qxd7 41. Re4) 40... Rf7 {[%emt 0:00:08]} 41. Qe5+ {[%emt 0:30:53]} (41. Qe6 $11 Rf6 42. Qe7+ Rf7) 41... Rf6 $1 $16 {[%emt 0:30:07]} 42. Re4 {[%emt 0:00:00] Black is now going downhill.} Qxd6 {[%emt 0:00:00]} 43. Qxd6 {[%emt 0:00:00]} Rxd6 {[%emt 0:00:00]} 44. Rxh4 {[%emt 0:00:00] KR-KR} Kf6 $2 {[%emt 0:00:00]} (44... Rd5 $16 {was necessary.}) 45. Ra4 $18 {[%emt 0:00:00]} Kg5 {[%emt 0:00:00]} 46. Kg3 {[%emt 0:00:00]} (46. Ra5+ $18 Kf4 47. Ra4+ Kg5 48. h4+ Kf5 49. g4+ Ke5 50. Kg3) 46... Rf6 $2 {[%emt 0:00:00][%mdl 8192]} (46... Rd3+ $16 47. Kh2 Rd6 48. h4+ Kh5) 47. Ra5+ {[%emt 0:00:00]} Kh6 {[%emt 0:00:00]} 48. Kh4 {[%emt 0:00:00] Prevents g5+.} Rc6 {[%emt 0:00:00]} 49. g4 {[%emt 0:00:00]} (49. g3 $142 Rb6 50. g4) 49... Rd6 {[%emt 0:00:00]} 50. g5+ {[%emt 0:00:00]} Kg7 {[%emt 0:00:00]} 51. Ra4 {[%emt 0:00:00] Inhibits Rd4+.} Kf7 $2 {[%emt 0:00:00]} (51... Rd1 {might work better.} 52. Rxa6 Kf7 53. Rf6+ Kg7) 52. Kg4 {[%emt 0:00:00]} Rc6 {[%emt 0:00:00]} 53. h4 {[%emt 0:00:00]} Kg7 $2 {[%emt 0:00:00]} (53... Kg8 54. h5 a5) 54. h5 {[%emt 0:00:00]} gxh5+ {[%emt 0:00:00]} (54... Rc1 {was called for.} 55. h6+ (55. Rxa6 Rc4+ 56. Kh3 Rc3+ 57. Kg4 Rc4+ 58. Kf3 gxh5 $11) 55... Kh7 56. Rxa6 Rg1+ 57. Kf4 Rf1+ 58. Ke4 Re1+ 59. Kf3 Rf1+ 60. Ke4 Re1+ 61. Kd4 Rd1+ 62. Ke5 Rf1) 55. Kxh5 {[%emt 0:00:00]} Rd6 {[%emt 0:00:00]} 56. Rc4 {[%emt 0:00:00]} Kh7 $2 {[%emt 0:00:00]} (56... Rd7 $18 57. a4 a5) 57. Rc7+ {[%emt 0:00:00]} Kg8 {[%emt 0:00:00]} 58. Ra7 {[%emt 0:00:00]} Rc6 {[%emt 0:00:00]} 59. a4 {[%emt 0:00:00][%cal Ba2a4,Ba4a5][%mdl 32]} Rd6 {[%emt 0:00:00]} 60. a5 {[%emt 0:00:00]} Rc6 {[%emt 0:00:00]} 61. Rb7 {[%emt 0:00:00]} Rc5 {[%emt 0:39:02]} 62. Kh6 {[%emt 0:00:00] Weighted Error Value: White=0.43/Black=0.59} 1-0